Cogmind - Beta 16 @@@ ROGUE MODE // 2025.12.19 @ 18:24:57 Player: SilentMoose Result: Destroyed by G-47 Trooper with Particle Gun Performance ------------- Evolutions (2) 1000 Regions Visited (4) 800 Robots Destroyed (27) 135 Value Destroyed (366) 366 Prototype IDs (0) 0 Alien Tech Used (0) 0 Bonus (0) 0 TOTAL SCORE: 2301 Bonus ------- None Cogmind --------- Core Integrity 0/550 Matter 10/300 Energy 84/100 System Corruption 0% Temperature Cool (27) Movement Core (100) Ox1 Location -8/Materials Parts ------- > --- POWER (2) -------- (None) > --- PROPULSION (5) --- (None) > --- UTILITY (2) ------ Small Storage Unit > --- WEAPON (2) ------- (None) > --- INVENTORY (8) ---- Heat Sink Peak State ------------ > --- POWER ------------ (None) > --- PROPULSION ------- Light Treads Light Treads > --- UTILITY ---------- Improved Heat Sink Small Storage Unit > --- WEAPON ----------- Minigun High-powered Shotgun > --- INVENTORY -------- Heat Sink Field Laser Assault Rifle Assault Rifle [Rating: 12] Favorites ----------- Power Light Ion Engine Engine Light Ion Engine Propulsion Aluminum Leg Treads Light Treads Leg Aluminum Leg Wheel Compact Wheel Utility Small Storage Unit Device Heat Sink Storage Small Storage Unit Protection Weapon Shielding Weapon Light Cannon Energy Gun Field Laser Ballistic Gun Assault Rifle Ballistic Cannon Light Cannon Launcher Grenade Launcher Build | -11 -10 -10 -9 -8 ------- Run | Yrd Mat Min Mat Mat Slots Evolved 4 | . . . 2 2 Power 1 | . . . . 1 Propulsion 3 | . . . 2 1 Utility . | . . . . . Weapon . | . . . . . Parts Attached 22 | 6 2 1 4 9 Power 2 | 1 . . 1 . Engine 2 | 1 . . 1 . Core . | . . . . . Reactor . | . . . . . Propulsion 9 | 2 . . 3 4 Treads 2 | . . . . 2 Leg 6 | 2 . . 3 1 Wheel 1 | . . . . 1 Hover . | . . . . . Flight . | . . . . . Utility 4 | 1 1 . . 2 Device 2 | . . . . 2 Storage 1 | 1 . . . . Processor . | . . . . . Hackware . | . . . . . Protection 1 | . 1 . . . Artifact . | . . . . . Weapon 7 | 2 1 1 . 3 Energy Gun 1 | . . . . 1 Energy Cannon . | . . . . . Ballistic Gun 4 | 2 . . . 2 Ballistic Cannon 1 | . . 1 . . Launcher 1 | . 1 . . . Special Weapon . | . . . . . Impact Weapon . | . . . . . Slashing Weapon . | . . . . . Piercing Weapon . | . . . . . Special Melee Weapon . | . . . . . Unidentified Prototypes . | . . . . . Parts Lost 19 | . . . 8 11 Power 2 | . . . 2 . Propulsion 8 | . . . 4 4 Utility 2 | . . . 1 1 Weapon 7 | . . . 1 6 Highest Loss Streak 9 | . . . 4 9 To Critical Strikes . | . . . . . Average Backups 6 | 3 7 8 6 2 Power . | . 1 1 . . Propulsion 2 | 2 4 4 3 . Utility . | . . 1 1 . Weapon 2 | . 1 2 2 2 Tool/Special . | . . . . . Unused Backups 2 | . . 2 . . Power . | . . . . . Propulsion 1 | . . 1 . . Utility . | . . . . . Weapon 1 | . . 1 . . Tool/Special . | . . . . . Average Slot Usage (%) 84 | . 95 100 91 54 Engine 9 | . 14 14 10 . Treads 3 | . . . . 14 Leg 24 | . 28 28 38 . Wheel 1 | . . . . 6 Device 2 | . . . . 8 Storage 11 | . 14 14 11 9 Protection 8 | . 9 14 10 . Ballistic Gun 5 | . 16 4 . 10 Ballistic Cannon 7 | . . 9 11 5 Launcher 8 | . 11 14 9 . Peak Build Rating 12 | 6 7 7 10 12 Average Rating 7 | 4 6 7 9 8 On Entrance 4 | . 6 7 7 2 Avg Prop Armor Cover (%) 3 | . . . 9 2 Naked Turns . | . . . . . Heaviest Build 15 | 12 14 15 15 12 Greatest Support 43 | 20 20 20 43 40 Greatest Overweight (x) 4 | 3 . . 4 2 Average Overweight (x) . | 1 . . . . Largest Inventory Capacity 8 | 8 8 8 8 8 Average Capacity 7 | 7 8 8 8 8 Most Carried 8 | 6 8 8 7 5 Average Carried 6 | 3 7 7 6 2 Final Capacity 8 | 8 8 8 8 8 Final Carried 8 | 6 8 8 6 1 Class Distribution -------------------- 100% | Mutant Dominant Class ---------------- Mutant | -10/Materials Mutant | -10/Mines Mutant | -9/Materials Mutant | -8/Materials Resources | -11 -10 -10 -9 -8 ----------- Run | Yrd Mat Min Mat Mat Matter Collected 386 | 230 18 59 73 6 Remotely . | . . . . . Salvage Created 311 | . 46 45 204 16 Parts 41 | . 3 8 28 2 Haulers Intercepted . | . . . . . Recyclers Shooed 2 | . 1 . 1 . Parts Field Recycled . | . . . . . Retrieved Matter . | . . . . . Parts Self-Destructed . | . . . . . Prevented . | . . . . . Parts Restored . | . . . . . Kills | -11 -10 -10 -9 -8 ------- Run | Yrd Mat Min Mat Mat Combat Hostiles Destroyed 18 | . . 6 11 1 Cannons 6 | . . 2 3 1 AOE 12 | . . 4 8 . Classes Destroyed 7 | . 3 1 3 . Worker 1 | . 1 . . . Builder 3 | . . . 3 . Tunneler 2 | . 1 . 1 . Operator 1 | . . . 1 . Watcher 2 | . 1 . 1 . Swarmer 16 | . . 6 9 1 Grunt 2 | . . . 2 . Best Kill Streak 10 | . 3 3 10 1 Combat Bots Only 6 | . . 3 6 1 Max Kills in Single Turn 4 | . 2 2 4 1 Gunslinging . | . . . . . Exploded 3 | . . 1 3 . Melee . | . . . . . Uniques/NPCs Destroyed . | . . . . . Combat | -11 -10 -10 -9 -8 -------- Run | Yrd Mat Min Mat Mat Hostile Shots Fired 292 | . . 14 115 163 Missed 103 | . . 10 41 52 Hits 189 | . . 4 74 111 Melee 7 | . . . . 7 Projectile 182 | . . 4 74 104 AOE 2 | . . . 1 1 Critical Strikes 4 | . . . . 4 Damage Taken 2520 | . 29 63 863 1565 Core 814 | . 29 . 234 551 Absorbed by Shields . | . . . . . Redirected to Shielding 52 | . . 11 41 . Core Remaining (%) 76 | 100 . 88 41 . Volleys Fired 42 | . 4 6 12 20 Largest 2 | . 2 2 2 2 Hottest 83 | . 50 60 60 83 Shots Fired 74 | . 8 12 18 36 Gun 43 | . 4 4 . 35 Cannon 15 | . . 2 12 1 Launcher 16 | . 4 6 6 . Special . | . . . . . Kinetic 45 | . 4 6 12 23 Thermal 13 | . . . . 13 Explosive 16 | . 4 6 6 . Electromagnetic . | . . . . . Robot Hit Streak 7 | . 1 3 4 7 Robot Miss Streak 7 | . 2 1 2 7 Penetration Max . | . . . . . Secondary Targets . | . . . . . Shots Hit Robots 26 | . 1 3 4 18 Core Hits 33 | . 5 6 19 3 Critical Kills . | . . . . . Critical Parts Destroyed . | . . . . . Critical Strikes . | . . . . . Melee Attacks . | . . . . . Impact . | . . . . . Slashing . | . . . . . Piercing . | . . . . . Sneak Attacks . | . . . . . Combat Hostiles . | . . . . . Follow-up Attacks . | . . . . . Damage Inflicted 1404 | . 147 211 753 293 Guns 286 | . 12 . . 274 Cannons 129 | . . 34 77 18 Explosions 988 | . 135 177 676 . Melee . | . . . . . Ramming 1 | . . . . 1 Kinetic 278 | . 12 34 77 155 Thermal 176 | . . 39 . 137 Explosive 949 | . 135 138 676 . Electromagnetic . | . . . . . Impact . | . . . . . Slashing . | . . . . . Piercing . | . . . . . Highest Corruption . | . . . . . Average Corruption . | . . . . . Corruption Purged . | . . . . . Corruption Blocked . | . . . . . Overload Shots . | . . . . . Overflow Damage 17 | . 6 . 11 . Projectiles . | . . . . . Explosions 17 | . 6 . 11 . Melee . | . . . . . Knockbacks . | . . . . . Impact . | . . . . . Kinetic . | . . . . . Secondary . | . . . . . Self-Inflicted Damage 120 | . 29 36 55 . Shots 4 | . 1 1 2 . Rammed 1 | . . . . 1 Targets Rammed 1 | . . . . 1 Kicked . | . . . . . Crushed . | . . . . . Highest Temperature 12 | . . . 7 12 Average Temperature 6 | . . . 4 7 Received Heat Transfer 513 | . . . 267 246 Siege Activations . | . . . . . Martial Activations . | . . . . . Shielding Activations . | . . . . . Robots Disrupted . | . . . . . Combat Hostiles . | . . . . . Robots Corrupted . | . . . . . Combat Hostiles . | . . . . . Parts Fried . | . . . . . Impact Corruptions . | . . . . . Robots Melted . | . . . . . Combat Hostiles . | . . . . . Parts Melted . | . . . . . Heat Transferred 346 | . . 50 . 296 Parts Sabotaged . | . . . . . Parts Stolen . | . . . . . Parts Stripped . | . . . . . Power Chain Reactions . | . . . . . Alert | -11 -10 -10 -9 -8 ------- Run | Yrd Mat Min Mat Mat Maximum Alert Level 1 | . . . 1 . Low Security (%) 95 | 100 100 100 86 100 Level 1 4 | . . . 13 . Level 2 . | . . . . . Level 3 . | . . . . . Level 4 . | . . . . . Level 5 . | . . . . . High Security . | . . . . . Max Security . | . . . . . Peak Influence 231 | . 113 161 231 73 Initial 73 | . . 39 13 73 Average 49 | . 19 89 51 18 Influence Increases 690 | . 123 202 314 51 Destroy 0b10 Robot/C 360 | . . 120 220 20 Destroy 0b10 Robot/NC 45 | . 15 . 30 . Destroy Leader 44 | . 2 20 22 . Disable Machine 90 | . 60 15 15 . Destroy Structure 106 | . 46 47 12 1 Lose Combat Pursuer 45 | . . . 15 30 Influence Decreases 690 | . 20 270 174 226 Entered New Map 188 | . . 64 22 102 Time Decay 414 | . 20 206 79 109 Lost Part 88 | . . . 73 15 Squads Dispatched 1 | . . . 1 . Investigation . | . . . . . Extermination . | . . . . . Reinforcement 1 | . . . 1 . Assault . | . . . . . Garrison . | . . . . . Intercept . | . . . . . Searches Triggered . | . . . . . Construction Impeded 1 | . . . 1 . Haulers Reinforced . | . . . . . Active Scanning Responses . | . . . . . Cargo Convoy Interrupts . | . . . . . Stealth | -11 -10 -10 -9 -8 --------- Run | Yrd Mat Min Mat Mat Distress Signals 4 | . . . 2 2 Communications Jammed . | . . . . . Distress Signals . | . . . . . Times Spotted 45 | . 2 6 22 15 Peak Tracking Total 9 | . 1 3 9 8 Tactical Retreats 3 | . . . 1 2 Traps | -11 -10 -10 -9 -8 ------- Run | Yrd Mat Min Mat Mat Traps Triggered 1 | . . . 1 . Indirectly . | . . . . . Trap Hack Attempts . | . . . . . Triggered . | . . . . . Disarmed . | . . . . . Reprogrammed . | . . . . . Reused . | . . . . . Traps Extracted . | . . . . . Installed . | . . . . . Triggered . | . . . . . Machines | -11 -10 -10 -9 -8 ---------- Run | Yrd Mat Min Mat Mat Machines Disabled 6 | . 4 1 1 . Max in Single Turn 3 | . 3 1 1 . Machines Repaired . | . . . . . Machines Dismantled . | . . . . . Machines Sabotaged . | . . . . . Overloaded Fab Kills . | . . . . . Hacking | -11 -10 -10 -9 -8 --------- Run | Yrd Mat Min Mat Mat Machines Accessed 4 | . . 1 2 1 Terminals 4 | . . 1 2 1 Fabricators . | . . . . . Repair Stations . | . . . . . Recycling Units . | . . . . . Scanalyzers . | . . . . . Garrison Access . | . . . . . Total Hacks 5 | . . 2 2 1 Successful 2 | . . 1 . 1 Failed 3 | . . 1 2 . Catastrophic . | . . . . . Database Lockouts . | . . . . . Manual . | . . . . . Terminals 5 | . . 2 2 1 Fabricators . | . . . . . Repair Stations . | . . . . . Recycling Units . | . . . . . Scanalyzers . | . . . . . Garrison Access . | . . . . . Terminal Hacks 2 | . . 1 . 1 Record 2 | . . 1 . 1 Fabricator Hacks . | . . . . . Repair Station Hacks . | . . . . . Recycling Unit Hacks . | . . . . . Scanalyzer . | . . . . . Garrison Access Hacks . | . . . . . Unauthorized Hacks . | . . . . . Terminals . | . . . . . Fabricators . | . . . . . Repair Stations . | . . . . . Recycling Units . | . . . . . Scanalyzers . | . . . . . Garrison Access . | . . . . . Data Cores Recovered . | . . . . . Used . | . . . . . Hacking Detections 2 | . . . 2 . Full Trace Events . | . . . . . Feedback Events . | . . . . . Feedback Blocked . | . . . . . Robot Schematics Acquired . | . . . . . Robots Built . | . . . . . Authchips . | . . . . . Time . | . . . . . Total Robot Build Rating . | . . . . . Part Schematics Acquired . | . . . . . Parts Built . | . . . . . Authchips . | . . . . . Time . | . . . . . Total Part Build Rating . | . . . . . Part Studies Acquired . | . . . . . Parts Repaired . | . . . . . Time . | . . . . . Parts Recycled . | . . . . . Recycled Matter . | . . . . . Retrieved Matter . | . . . . . Retrieved Components . | . . . . . Parts Scanalyzed . | . . . . . Part Schematics Acquired . | . . . . . Parts Damaged . | . . . . . Bothacking | -11 -10 -10 -9 -8 ------------ Run | Yrd Mat Min Mat Mat Used RIF Installer . | . . . . . Robots Hacked . | . . . . . Non-combat . | . . . . . Combat . | . . . . . Robot Hacks Applied . | . . . . . Relay Couplers Released . | . . . . . Fabnet Peak Effective % . | . . . . . Robots Rewired . | . . . . . Allies Hacked . | . . . . . Hacks Repelled . | . . . . . Allies | -11 -10 -10 -9 -8 -------- Run | Yrd Mat Min Mat Mat Total Allies . | . . . . . Largest Group . | . . . . . Highest-Rated Group . | . . . . . Highest-Rated Ally . | . . . . . Total Orders . | . . . . . Ally Attacks . | . . . . . Total Damage . | . . . . . Kills . | . . . . . Allies Corrupted . | . . . . . Allies Melted . | . . . . . Intel | -11 -10 -10 -9 -8 ------- Run | Yrd Mat Min Mat Mat Active Infowar (turns) . | . . . . . Robot Analysis Total . | . . . . . Derelict Logs Recovered 1 | . . 1 . . Drone Launches . | . . . . . Drone Recoveries . | . . . . . Exploration | -11 -10 -10 -9 -8 ------------- Run | Yrd Mat Min Mat Mat Turns Passed 1416 | 67 134 431 429 355 Spaces Moved 975 | 40 93 341 320 181 Core 54 | 23 . . 16 15 Treads 166 | . . . . 166 Legs 755 | 17 93 341 304 . Wheels . | . . . . . Hover . | . . . . . Flight . | . . . . . Fastest Speed 50 | 50 120 120 120 100 Average Speed 128 | 131 120 120 123 155 Slowest Speed 250 | 200 120 120 250 160 Overloaded Moves . | . . . . . Propulsion Burnouts . | . . . . . Robots Hopped . | . . . . . Potential Cave-ins . | . . . . . Cave-ins Triggered . | . . . . . Exploration Rate (%) 30 | 4 15 73 39 23 Regions Visited 4 Branch Regions 1 Pre-discovered Areas . | . . . . . Known Exits Taken . | . . . . . Unknown Exits Taken 4 | 1 1 1 1 . Scrap Searched 1 | . . 1 . . Spaces Dug . | . . . . . Terrain Destroyed 137 | . 54 69 14 . Melee . | . . . . . Projectile . | . . . . . AOE 137 | . 54 69 14 . Terrain Rammed . | . . . . . Walls Destroyed . | . . . . . Machines Disabled . | . . . . . Actions | -11 -10 -10 -9 -8 --------- Run | Yrd Mat Min Mat Mat Total 1061 | 51 106 351 336 217 Wait 7 | . 6 . 1 . Move 971 | 39 92 340 319 181 Hop . | . . . . . Pick Up 13 | 6 2 2 . 3 Fast Attach 10 | 6 1 . 2 1 Attach 11 | . . . 2 9 Detach . | . . . . . Swap 4 | . 1 1 . 2 Drop 2 | . . 2 . . Fire 42 | . 4 6 12 20 Melee . | . . . . . Ram 1 | . . . . 1 Kick . | . . . . . Crush . | . . . . . Escape Stasis . | . . . . . Rewire . | . . . . . Trap . | . . . . . Miscellaneous . | . . . . . Route ------- -11/Scrapyard -10/Materials -10/Mines -9/Materials -8/Materials History --------- Turn | Location | Event 27 | -11/Scrapyard | Discovered new exit (range 14) 68 | -11/Scrapyard | Entered Materials 184 | -10/Materials | Discovered new exit (range 12) 202 | -10/Materials | Entered Mines 300 | -10/Mines | Build established: Mutant 407 | -10/Mines | Learned Materials emergency access door positions 626 | -10/Mines | Discovered new exit (range 7) 633 | -10/Mines | Entered Materials 633 | -9/Materials | Evolved 2 slots: Propulsion x2 1024 | -9/Materials | Lost 3 parts (1p1n1w) 1041 | -9/Materials | Discovered new exit (range 16) 1048 | -9/Materials | Core integrity fell below 50% 1062 | -9/Materials | Entered another Materials area 1062 | -8/Materials | Evolved 2 slots: Power x1, Propulsion x1 1074 | -8/Materials | Lost 4 parts (1p2n1u) 1374 | -8/Materials | Core integrity fell below 50% 1408 | -8/Materials | Core integrity fell below 20% 1417 | -8/Materials | Destroyed by G-47 Trooper with Particle Gun Last Messages --------------- 01402_ Fusion Modulator explodes. 01402_ Y-45 Defender destroyed. 01402_ S-10 Pest destroyed. 01405_ Penetrated by Slug. 01405_ Acquired Imp. Aluminum Leg. 01405_ Imp. Aluminum Leg destroyed. 01408_ Slug penetrates Wall. 01409_ H-55 Commando heat damages Assault Rifle. 01410_ H-55 Commando heat spikes uncontrollably. 01411_ Penetrated by Slug. 01412_ O-24 Administrator: "IFF HANDSHAKE FAILED. SECURING TERMINAL." 01413_ H-55 Commando heat spikes uncontrollably. 01413_ U-05 Engineer lays Concrete. 01414_ U-05 Engineer builds a Wall. 01415_ H-55 Commando heat damages Broken Targeting Computer, Carbon-fiber Leg, Gauss Rifle, Carbon-fiber Leg. 01415_ R-06 Scavenger collects Lgt. Treads. 01417_ Critical hit (Burn: +37). Map ----- +----------------------------------------------------+ | ????????????????????????????????? | | ????????????????????????????????? | | ????????????????????????????????? | | ????????????????????????????????? | | ????????????????????????????????? | | ????????????????????????????????? | | ????????????????????????????????? | | ????????????????????????????????? | | ????????????????????????????????? | | ????????????????????????????????? | | ???????????????????????? ?????? | | ???????????????????????? ?????? | | ???????????????????????? #????? | | ?????????????????#####?# #????? | | ????????????????? #?# #????? | | ?????????# ??????" #?# #????? | | ?????????# """"""" #?# #??? ? | | ?????????# """"""" "#?# #?? ? | | ?????????# """"""" T#?# #? ? | | ?????????# """"""" "#?# # ?? | | ?#####???? #?# + ???? | | ##"T"####??#;;;;;;;;#### #????? | | #??# ; # #????? | | #?## ; ; #????? | | ####r;h ; #????? | | u%aggrr ; @ #????? | | ###;;;g ; #????? | | """#?# ; ; #????? | | ! Y"#?## ; ;! #????? | | !! """#?# ; ;%o #????? | | #?####; ;;;;;; #????? | | #????##;;;;;;;; #???? | | #########???? " #???? | | ?????????? "T #???? | | ???????? #???? | | ?????? ############# #???? | | #????? ????????????#######???? | | #????? ??????????????????????? | | ? #????? #?????????????????????? | | ######### #?????????????????????? | | # #?????????????????????? | | # #?????????????????????? | | # #?????????????????????? | | # #?????????????????????? | | # #?????????????????????? | | # #?????????????????????? | | ###/##### ########??????????????? | | # #??????????????? | | # """ #??????????????? | | """ # """ #??????????????? | +----------------------------------------------------+ Best States ------------- Heat Dissipation 41 Energy Generation 10 Energy Capacity 250 Matter Stores 270 Matter Capacity 300 Sight Range 16 Terrain Scan Density 10 Weapon Shielding 33 Evasion (%) 55 Recoil Reduction 2 Item Schematics ----------------- None Robot Schematics ------------------ None Fabricated ------------ Nothing Repaired ---------- Nothing Studied --------- None Alien Tech Used ----------------- None Achievements -------------- Hydra Challenges ------------ None Game ------ Seed TractorZhirovPropulsion Manual? 0 Play Time 00:15:53 Cumulative 5.1 hours Start 2025.12.09 @ 09:31:55 End 2025.12.19 @ 18:24:57 Sessions 3 Manual Loads 0 Difficulty Rogue Special Mode None Game No. 19 Rogue 19 Adventurer 0 Explorer 0 Win Type - Total 0 Types 0/0/0/0/0/0/0/0/0/0 Lore% 4 Gallery% 9 Achievement% 7 Wizard Run 0 Options --------- Layout 1 ASCII 0 Keyboard 1 Movement Vi Keybinds 0 Fullscreen 1 Font 24/Smallcaps Map View 50x35 Zoom Use 0% Tactical HUD 1 Map Filters NONE Filters NONE Steam 1 RUN: 428a0e83-c566-4dab-90cc-6ba7a7427fda